bitfinex-derivatives/quotes_BTCF0:USTF0_20210707
["timestamp","ask_amount","ask_price","bid_price","bid_amount"]
[1625699758039,0.005,33950.0,33930.0,1.39945047]
[1625699758188,0.80946788,33962.0,33931.0,0.5]
[1625699758339,0.003,33941.0,33932.0,1.39741243]
[1625699758490,0.003,33941.0,33933.0,0.5]
[1625699758639,0.003,33941.0,33934.0,0.03]
[1625699758789,0.004,33946.0,33935.0,1.53764428]
[1625699758939,0.004,33946.0,33936.0,0.53]
[1625699759091,0.004,33946.0,33938.0,1.53752716]
[1625699759238,0.004,33946.0,33945.0,0.96230176]
[1625699759389,0.004,33946.0,33945.0,5.39799176]
[1625699759839,0.004,33946.0,33945.0,5.89799176]
[1625699760590,0.004,33946.0,33945.0,5.90332975]
[1625699760743,0.004,33946.0,33945.0,5.40332975]
[1625699761042,0.004,33946.0,33945.0,5.90332975]
[1625699761342,0.057,33974.0,33945.0,5.90332975]
[1625699761567,0.057,33974.0,33945.0,5.40332975]
[1625699761867,0.057,33974.0,33946.0,0.00533814]
[1625699762468,0.9391,33975.0,33946.0,0.00533814]
[1625699763217,0.9391,33975.0,33974.0,0.96230176]
[1625699763367,1.14193362,33979.0,33974.0,1.23956176]
[1625699763519,0.057,33980.0,33974.0,1.23956176]
[1625699763669,1.1431022,33983.0,33974.0,1.23956176]
[1625699764420,1.38190307,33986.0,33974.0,1.23956176]
[1625699764568,0.24057544,33986.0,33974.0,1.23956176]
[1625699764719,0.057,33985.0,33974.0,1.23956176]
[1625699765319,0.057,33985.0,33984.0,0.48115088]
[1625699765469,0.057,33985.0,33984.0,0.82634088]
[1625699765620,0.057,33985.0,33984.0,0.24797]
[1625699766971,1.19553521,33985.0,33974.0,0.24057544]
[1625699767121,0.057,33985.0,33974.0,0.24057544]
[1625699767271,0.24057544,33975.0,33974.0,0.24057544]
[1625699767421,0.29757544,33975.0,33974.0,0.24057544]
[1625699767570,0.24057544,33975.0,33974.0,0.24057544]
[1625699767722,0.057,33975.0,33974.0,0.24057544]
[1625699767872,0.24057544,33977.0,33974.0,0.24057544]
[1625699768022,0.24057544,33977.0,33974.0,0.55689544]
[1625699768773,0.057,33976.0,33974.0,0.55689544]
[1625699769073,0.24057544,33977.0,33974.0,0.55689544]
[1625699771251,0.057,33976.0,33974.0,0.55689544]
[1625699771628,0.057,33976.0,33974.0,0.24057544]
[1625699776359,0.057,33976.0,33974.0,0.24097544]
[1625699776661,0.24057544,33977.0,33974.0,0.24097544]
[1625699777935,0.057,33976.0,33974.0,0.24097544]
[1625699778085,0.24057544,33977.0,33974.0,0.24097544]
[1625699778237,0.24057544,33977.0,33974.0,0.52383544]
[1625699784619,0.24057544,33977.0,33975.0,0.00533703]
[1625699784919,0.24057544,33977.0,33974.0,0.24097544]
[1625699785820,0.058,33983.0,33975.0,0.00533701]
[1625699785970,0.058,33983.0,33975.0,0.34369701]
[1625699786270,0.058,33983.0,33976.0,0.00533642]
[1625699787397,0.058,33983.0,33982.0,0.48115088]
[1625699787546,0.058,33983.0,33982.0,0.77746088]
[1625699787850,0.058,33983.0,33982.0,0.78279703]
[1625699788447,0.001,33983.0,33982.0,0.78279703]
[1625699789798,0.001,33983.0,33982.0,0.79146792]
[1625699790550,0.001,33983.0,33982.0,0.78279703]
[1625699792054,0.001,33983.0,33982.0,0.48648703]
[1625699792655,0.21788,33983.0,33982.0,0.48648703]
[1625699792807,0.27488,33983.0,33982.0,0.48648703]
[1625699793257,0.21788,33983.0,33982.0,0.48648703]
[1625699793857,0.001,33983.0,33982.0,0.48648703]
[1625699797460,0.001,33989.0,33982.0,0.48688703]
[1625699797611,0.001,33989.0,33982.0,0.49555577]
[1625699797761,0.001,33989.0,33982.0,0.99555577]
[1625699797910,0.001,33989.0,33983.0,0.01400035]
[1625699798062,0.001,33989.0,33988.0,4.16]
[1625699798211,0.001,33989.0,33988.0,4.45489]
[1625699798361,0.001,33989.0,33988.0,4.95489]
[1625699798510,0.001,33989.0,33988.0,4.99022135]
[1625699798661,0.001,33989.0,33988.0,4.99888692]
[1625699799261,1.054,34013.0,33988.0,4.99888692]
[1625699799411,1.054,34013.0,34009.0,0.96230176]
[1625699799563,1.054,34013.0,34009.0,1.25497176]
[1625699800162,0.057,34013.0,34009.0,1.25497176]
[1625699800463,0.24057544,34017.0,34009.0,1.25497176]
[1625699801065,0.057,34020.0,34010.0,0.00533657]
[1625699801214,0.24057544,34021.0,34010.0,0.00533657]
[1625699801365,0.9930372,34023.0,34022.0,4.6687]
[1625699801515,1.56456988,34027.0,34022.0,4.6687]
[1625699801516,0.99390343,34026.0,34022.0,5.48517088]
[1625699801815,0.24057544,34027.0,34022.0,5.48517088]
[1625699802418,0.29757544,34027.0,34022.0,5.48517088]
[1625699803467,0.29757544,34027.0,34026.0,0.24057544]
[1625699803621,0.29757544,34027.0,34022.0,5.14985088]
[1625699803769,0.29757544,34027.0,34022.0,0.48115088]
[1625699803918,0.66326343,34026.0,34022.0,0.48115088]
[1625699804068,0.057,34025.0,33999.0,0.9656]
[1625699804220,0.72010851,34025.0,33999.0,0.9656]
[1625699804519,0.72010851,34025.0,34000.0,0.00533618]
[1625699804670,0.057,34025.0,34000.0,0.00533618]
[1625699804969,0.057,34025.0,34011.0,4.055]
[1625699805420,0.057,34025.0,34020.0,0.24057544]
[1625699805570,0.29757544,34025.0,34020.0,0.24057544]
[1625699807523,0.24057544,34021.0,34020.0,0.24057544]
[1625699807672,0.29757544,34021.0,34020.0,0.24057544]
[1625699808274,0.29757544,34021.0,34011.0,4.055]
[1625699808423,0.29757544,34021.0,34000.0,0.0004]
[1625699808722,0.96061785,34021.0,34000.0,0.0004]
[1625699808874,0.66280044,34020.0,34000.0,0.0004]
[1625699809023,0.057,34019.0,34000.0,0.0004]
[1625699809473,0.24057544,34006.0,34005.0,0.24057544]
[1625699809699,0.56630544,34006.0,34005.0,0.24057544]
[1625699811577,0.62330544,34006.0,34005.0,0.24057544]
[1625699811877,0.29757544,34006.0,34005.0,0.24057544]
[1625699812027,0.24057544,34006.0,34005.0,0.24057544]
[1625699812778,0.48115088,34010.0,34005.0,0.24057544]
[1625699812929,0.24057544,34021.0,34005.0,0.46897544]
[1625699813456,0.24057544,34021.0,34017.0,0.24057544]
[1625699813607,0.48115088,34021.0,34017.0,0.52631544]
[1625699814355,0.24057544,34021.0,34017.0,0.52631544]
[1625699815483,0.24057544,34021.0,34020.0,0.24057544]
[1625699815856,0.24057544,34025.0,34020.0,0.24057544]
[1625699816458,0.057,34024.0,34020.0,0.24057544]
[1625699817510,0.057,34024.0,34022.0,0.24057544]
[1625699819313,0.24057544,34025.0,34022.0,0.24057544]
[1625699821119,0.24057544,34033.0,34022.0,0.24057544]
[1625699821566,0.057,34032.0,34029.0,0.24057544]
[1625699821716,0.057,34032.0,34029.0,0.55174544]
[1625699823518,0.057,34032.0,34031.0,0.24057544]
[1625699826370,0.057,34032.0,34031.0,0.2459071]
[1625699828772,0.24057544,34033.0,34031.0,0.2459071]
[1625699828924,0.057,34039.0,34031.0,0.2459071]
[1625699829071,0.057,34039.0,34032.0,0.00533136]
[1625699829521,0.057,34039.0,34038.0,4.7885]
[1625699829671,0.057,34039.0,34038.0,5.56582088]
[1625699829974,0.057,34039.0,34038.0,5.57115185]
[1625699830273,0.057,34039.0,34038.0,5.56582088]
[1625699832079,0.057,34039.0,34038.0,5.26965088]
[1625699832756,0.057,34039.0,34038.0,5.02907544]
[1625699833728,0.057,34039.0,34031.0,0.24057544]
[1625699833879,0.28496,34039.0,34031.0,0.24057544]
[1625699835154,0.50082684,34038.0,34031.0,0.24057544]
[1625699835302,0.057,34037.0,34031.0,0.24057544]
[1625699835604,0.48115088,34032.0,34031.0,0.24057544]
[1625699835753,0.77013088,34032.0,34031.0,0.24057544]
[1625699837555,0.77013088,34032.0,34029.0,0.0004]
[1625699837705,0.48115088,34030.0,34029.0,0.0004]
[1625699837854,0.53815088,34030.0,34019.0,0.24357544]
[1625699838306,0.50013505,34027.0,34019.0,0.24357544]
[1625699838454,0.057,34026.0,34019.0,0.24357544]
[1625699838604,0.057,34026.0,34019.0,0.003]
[1625699838757,0.55716683,34026.0,34019.0,0.003]
[1625699839354,1.22409853,34026.0,34021.0,0.003]
[1625699839504,0.49988304,34023.0,34021.0,0.003]
[1625699839654,0.77872632,34022.0,34021.0,0.003]
[1625699839805,1.27846491,34022.0,34021.0,0.003]
[1625699840030,1.94463765,34022.0,34021.0,0.003]
[1625699840332,4.11086592,34022.0,34016.0,0.004]
[1625699840632,0.50004606,34019.0,34016.0,0.004]
[1625699840784,0.057,34018.0,34016.0,0.004]
[1625699841533,0.55693017,34018.0,34016.0,0.004]
[1625699841684,0.48115088,34017.0,34016.0,0.004]
[1625699841837,0.53815088,34017.0,34016.0,0.004]
[1625699841985,1.03798613,34017.0,34016.0,0.004]
[1625699842435,2.70526975,34017.0,34016.0,0.004]
[1625699843261,2.70526975,34017.0,33988.0,5.35315816]
[1625699843262,4.37222139,34017.0,33988.0,5.35315816]
[1625699843411,4.37222139,34017.0,33983.0,1.36360933]
[1625699843412,0.49961484,34010.0,33984.0,0.97327793]
[1625699843562,0.557,34009.0,33984.0,0.97327793]
[1625699843712,1.0,34002.0,33989.0,0.00534097]
[1625699843862,4.1274,33998.0,33985.0,0.0053417]
[1625699844013,0.057,33997.0,33985.0,0.0053417]
[1625699844162,0.057,33997.0,33980.0,0.00534159]
[1625699844465,0.057,33997.0,33974.0,0.00534216]
[1625699844615,0.66474893,33996.0,33974.0,0.00534216]
[1625699844765,0.057,33995.0,33981.0,0.00534316]
[1625699844915,0.27122,33995.0,33981.0,0.00534316]
[1625699845066,0.27122,33995.0,33975.0,0.00534291]
[1625699845215,0.5,33994.0,33982.0,0.00534296]
[1625699845365,0.057,33993.0,33982.0,0.00534296]
[1625699845515,0.057,33993.0,33972.0,0.00534332]
[1625699845669,0.72172632,33973.0,33972.0,0.00534332]
[1625699845816,0.99660632,33973.0,33970.0,0.68284639]
[1625699846116,0.99660632,33973.0,33972.0,0.0053434]
[1625699846266,0.99660632,33973.0,33971.0,0.68871525]
[1625699846566,0.99660632,33973.0,33972.0,0.00534319]
[1625699847541,0.72172632,33973.0,33971.0,0.00534322]
[1625699847692,0.72172632,33973.0,33972.0,0.24057544]
[1625699847847,0.72172632,33973.0,33972.0,0.2459187]
[1625699847991,0.72172632,33973.0,33972.0,0.92913153]
[1625699848292,0.72172632,33973.0,33972.0,3.15137138]
[1625699848516,0.057,33990.0,33972.0,1.95478069]
[1625699848671,0.9982,33994.0,33972.0,2.25965069]
[1625699848821,0.9982,33994.0,33976.0,0.68361717]
[1625699849120,0.9982,33994.0,33979.0,0.68357809]
[1625699849269,0.9982,33994.0,33988.0,0.001]
[1625699849418,0.9982,33994.0,33988.0,0.24945]
[1625699849568,0.057,33996.0,33988.0,0.24945]
[1625699849725,0.057,33996.0,33995.0,0.24057544]
[1625699853324,0.24057544,33997.0,33995.0,0.24057544]
[1625699855877,0.24057544,34000.0,33995.0,0.24057544]
[1625699856026,0.24057544,34004.0,33995.0,0.24057544]
[1625699856177,1.00480574,34008.0,33995.0,0.24057544]
[1625699856178,0.66942656,34008.0,33995.0,0.24057544]
[1625699856327,0.67024184,34011.0,33995.0,0.92586607]
[1625699856627,1.63803226,34012.0,34011.0,4.422]
[1625699856777,0.67023226,34012.0,34011.0,4.68148]
[1625699856928,1.67499625,34012.0,34011.0,4.68148]
[1625699857531,0.67023226,34012.0,34011.0,4.68148]
[1625699857680,0.67023226,34012.0,34011.0,4.92205544]
[1625699857829,1.91547454,34012.0,34011.0,4.92205544]
[1625699857979,0.9108077,34012.0,34011.0,4.92205544]
[1625699858505,1.91609574,34012.0,34011.0,4.92205544]
[1625699858808,1.97309574,34012.0,34011.0,4.92205544]
[1625699858959,3.14521381,34012.0,34011.0,4.66257544]
[1625699859262,4.48430771,34012.0,34011.0,4.66257544]
[1625699859560,4.48430771,34012.0,34002.0,0.24057544]
[1625699859710,0.24057544,34003.0,34002.0,0.24057544]
[1625699859860,0.52513544,34003.0,34002.0,0.24057544]
[1625699860311,0.58213544,34003.0,34002.0,0.24057544]
[1625699861819,0.52513544,34003.0,34002.0,0.24057544]
[1625699862270,0.58213544,34003.0,34002.0,0.24057544]
[1625699863094,0.91684081,34003.0,34002.0,0.24057544]
[1625699863246,0.85984081,34003.0,34002.0,0.24057544]
[1625699863395,0.52513544,34003.0,34002.0,0.24057544]
[1625699863846,0.24057544,34003.0,34002.0,0.24057544]
[1625699864897,0.24057544,34003.0,34002.0,0.55625544]
[1625699866546,0.24057544,34003.0,34002.0,0.56156107]
[1625699867602,0.24057544,34003.0,34002.0,0.24588107]
[1625699870531,0.29757544,34003.0,34002.0,0.24588107]
[1625699871129,0.24057544,34003.0,34002.0,0.24588107]
[1625699871581,0.24057544,34005.0,34002.0,0.24588107]
[1625699871730,0.3359332,34008.0,34002.0,0.24588107]
[1625699871731,0.001,34008.0,34002.0,0.24588107]
[1625699871880,0.001,34008.0,34007.0,0.48115088]
[1625699872030,0.001,34008.0,34007.0,0.70921088]
[1625699872481,0.001,34008.0,34007.0,0.71451531]
[1625699874285,0.001,34008.0,34007.0,0.24587987]
[1625699875034,0.001,34008.0,34007.0,0.24057544]
[1625699875185,0.39311537,34008.0,34007.0,0.24057544]
[1625699875485,2.90278174,34008.0,34007.0,0.24057544]
[1625699875786,2.90278174,34008.0,34001.0,0.001]
[1625699875936,0.66884452,34003.0,34001.0,0.001]
[1625699876086,0.057,34002.0,34001.0,0.001]
[1625699876237,0.72562185,34002.0,34001.0,0.001]
[1625699876386,0.72562185,34002.0,34001.0,0.002]
[1625699876538,0.057,34002.0,34001.0,0.002]
[1625699876987,0.057,34002.0,34001.0,0.00731099]
[1625699877814,0.29757544,34002.0,34001.0,0.00731099]
[1625699880371,0.24057544,34002.0,34001.0,0.00731099]
[1625699881566,0.24057544,34002.0,34001.0,0.28617099]
[1625699881867,0.24057544,34002.0,34001.0,0.52674643]
[1625699882168,0.24057544,34002.0,34001.0,0.69804846]
[1625699882467,0.48115088,34008.0,34001.0,0.7067106]
[1625699882620,0.48115088,34008.0,34001.0,1.04930499]
[1625699882768,0.48115088,34008.0,34002.0,0.51388892]
[1625699882919,0.48115088,34008.0,34002.0,0.52786392]
[1625699883217,0.48115088,34008.0,34003.0,0.00531319]
[1625699883974,0.48115088,34008.0,34007.0,0.24057544]
[1625699884268,0.48115088,34008.0,34007.0,0.24588868]
[1625699886671,0.001,34013.0,34007.0,0.24588868]
[1625699886974,0.001,34013.0,34008.0,0.00531261]
[1625699887123,0.001,34013.0,34008.0,0.26232261]
[1625699887571,0.001,34013.0,34009.0,0.00531486]
[1625699888027,0.001,34013.0,34012.0,0.24057544]
[1625699888325,0.001,34013.0,34012.0,0.24589022]
[1625699889453,0.50433047,34013.0,34012.0,0.00531478]
[1625699889602,0.56133047,34013.0,34012.0,0.00531478]
[1625699889900,0.80190591,34013.0,34008.0,0.00531583]
[1625699890051,0.55699544,34013.0,34008.0,0.00531583]
[1625699890203,0.16778359,34011.0,34008.0,0.00531583]
[1625699890350,0.22478359,34011.0,34008.0,0.00531583]
[1625699890502,0.56044409,34011.0,34008.0,0.00531583]
[1625699890803,0.50344409,34011.0,34008.0,0.00531583]
[1625699891104,0.50372382,34012.0,34008.0,0.00531583]
[1625699891554,0.40964017,34013.0,34008.0,0.22929583]
[1625699891930,0.24157544,34013.0,34012.0,0.24057544]
[1625699892380,0.24157544,34013.0,34012.0,0.24589068]
[1625699892980,0.24157544,34013.0,34012.0,0.41766825]
[1625699893581,0.24157544,34013.0,34012.0,0.24589068]
[1625699893954,0.001,34013.0,34012.0,0.24589068]
[1625699894255,0.001,34013.0,34012.0,0.41764875]
[1625699894555,0.001,34013.0,34012.0,0.58954611]
[1625699894855,0.001,34013.0,34012.0,0.24589068]
[1625699895007,0.001,34013.0,34012.0,0.93315523]
[1625699895306,0.001,34013.0,34012.0,1.96400645]
[1625699896360,0.001,34013.0,34012.0,3.16662616]
[1625699897335,0.001,34018.0,34012.0,4.54103722]
[1625699897636,0.001,34018.0,34016.0,0.68686992]
[1625699897784,0.001,34018.0,34016.0,0.50479345]
[1625699897934,0.001,34018.0,34017.0,0.24589014]
[1625699898084,0.001,34018.0,34017.0,0.76105572]
[1625699898834,0.001,34018.0,34017.0,0.24589014]
[1625699898986,0.001,34018.0,34017.0,0.76101605]
[1625699899436,0.001,34018.0,34017.0,0.24589014]
[1625699906266,0.057,34019.0,34017.0,0.24589014]
[1625699906566,0.39831399,34019.0,34018.0,0.00531572]
[1625699906867,0.56907822,34019.0,34018.0,0.00531572]
[1625699907318,0.39831399,34019.0,34018.0,0.00531572]
[1625699907771,0.22788479,34019.0,34018.0,0.00531572]
[1625699908070,0.22788479,34019.0,34018.0,0.24589116]
[1625699908369,0.56971768,34019.0,34018.0,0.24589116]
[1625699910395,0.39883289,34019.0,34018.0,0.24589116]
[1625699911523,0.56982606,34019.0,34018.0,0.24589116]
[1625699911674,0.39883289,34019.0,34018.0,0.24589116]
[1625699912124,0.56979526,34019.0,34018.0,0.24589116]
[1625699912425,0.34183289,34019.0,34018.0,0.24589116]
[1625699912724,0.51288775,34019.0,34018.0,0.24589116]
[1625699914376,0.34183289,34019.0,34018.0,0.24589116]
[1625699915808,0.39883289,34019.0,34018.0,0.24589116]
[1625699915961,0.34183289,34019.0,34018.0,0.24589116]
[1625699916109,0.98081952,34020.0,34018.0,0.24589116]
[1625699916259,0.057,34019.0,34018.0,0.24589116]
[1625699916410,0.057,34019.0,34018.0,0.24057544]
[1625699916710,0.057,34019.0,34018.0,0.24589169]
[1625699918286,0.39850198,34019.0,34018.0,0.24589169]
[1625699918887,0.34150198,34019.0,34018.0,0.24589169]
[1625699919038,0.92381952,34020.0,34018.0,0.24589169]
[1625699919039,0.75312025,34020.0,34018.0,0.76159659]
[1625699919190,0.75312025,34020.0,34018.0,1.08426659]
[1625699919338,0.24057544,34020.0,34019.0,0.34910342]
[1625699919790,0.24057544,34020.0,34019.0,0.17719233]
[1625699919937,0.24057544,34020.0,34019.0,0.00531587]
[1625699920087,0.057,34020.0,34019.0,0.00531587]
[1625699920238,0.56925007,34020.0,34019.0,0.00531587]
[1625699920463,0.39844317,34020.0,34019.0,0.00531587]
[1625699920914,0.057,34020.0,34019.0,0.00531587]
[1625699921065,0.73967135,34020.0,34019.0,0.00531587]
[1625699921366,0.39835896,34020.0,34019.0,0.00531587]
[1625699921816,0.34135896,34020.0,34019.0,0.00531587]
[1625699921966,0.34135896,34020.0,34019.0,0.34148587]
[1625699922118,0.68254733,34021.0,34019.0,0.34148587]
[1625699922119,0.75296328,34021.0,34019.0,0.8658834]
[1625699922420,0.75296328,34021.0,34020.0,0.51584535]
[1625699922567,0.24057544,34021.0,34020.0,0.35787301]
[1625699922866,0.32612833,34021.0,34020.0,0.35787301]
[1625699923168,0.24057544,34021.0,34020.0,0.70173358]
[1625699925723,0.29757544,34021.0,34020.0,0.70173358]
[1625699926020,0.29757544,34021.0,34020.0,0.69307491]
[1625699926321,0.29757544,34021.0,34020.0,0.34917047]
[1625699926471,0.38310704,34021.0,34020.0,0.34917047]
[1625699926995,0.55399313,34021.0,34020.0,0.52112289]
[1625699927296,0.24057544,34021.0,34020.0,0.00531744]
[1625699927445,0.24057544,34021.0,34020.0,0.09129655]
[1625699927600,0.58211631,34021.0,34020.0,0.09129655]
[1625699927746,0.83851403,34021.0,34020.0,0.60716434]
[1625699927896,0.89551403,34021.0,34020.0,0.60716434]
[1625699928347,2.00365388,34021.0,34020.0,0.00531744]
[1625699928797,2.00365388,34021.0,34019.0,0.0053181]
[1625699928949,0.68278358,34020.0,34019.0,0.0053181]
[1625699929099,0.73978358,34020.0,34019.0,0.0053181]
[1625699929251,1.76383519,34020.0,34019.0,0.0053181]
[1625699930299,2.00441063,34020.0,34019.0,0.0053181]
[1625699931428,2.00441063,34020.0,34018.0,0.60227487]
[1625699931727,0.68295392,34019.0,34018.0,0.60227487]
[1625699931878,0.73995392,34019.0,34018.0,0.60227487]
[1625699932027,0.73995392,34019.0,34018.0,0.60759292]
[1625699932254,0.73995392,34019.0,34018.0,0.52158049]
[1625699932555,0.73995392,34019.0,34018.0,0.26345868]
[1625699933006,0.73995392,34019.0,34018.0,0.60766372]
[1625699933230,0.73995392,34019.0,34018.0,0.5216122]
[1625699933529,0.73995392,34019.0,34018.0,0.60766193]
[1625699933681,1.25245521,34019.0,34018.0,0.60766193]
[1625699933980,1.25245521,34019.0,34018.0,0.26345689]
[1625699934283,1.25245521,34019.0,34018.0,0.60768715]
[1625699934431,2.27714244,34019.0,34018.0,0.26345689]
[1625699934734,2.27714244,34019.0,34018.0,0.00531805]
[1625699935708,2.27714244,34019.0,34018.0,0.09139051]
[1625699936234,2.27714244,34019.0,34018.0,0.00531805]
[1625699936384,2.51771788,34019.0,34015.0,0.68858768]
[1625699936535,2.51771788,34019.0,34012.0,0.002]
[1625699936536,6.62100714,34019.0,34012.0,0.002]
[1625699936683,6.62100714,34019.0,34016.0,0.00531232]
[1625699936836,1.53828139,34018.0,34016.0,0.00531232]
[1625699936986,5.86740006,34017.0,34013.0,0.0053126]
[1625699937288,4.27157198,34014.0,34013.0,0.0053126]
[1625699937436,4.32857198,34014.0,34013.0,0.0053126]
[1625699937968,5.864894,34014.0,34013.0,0.0053126]
[1625699938264,6.34604488,34014.0,34013.0,0.0053126]
[1625699939319,4.80972286,34014.0,34013.0,0.0053126]
[1625699944580,4.80972286,34014.0,34013.0,0.2381926]
[1625699944728,4.75272286,34014.0,34013.0,0.2381926]
[1625699945030,4.75272286,34014.0,34013.0,3.17105687]
[1625699945031,2.24684801,34014.0,34013.0,3.17105687]
[1625699945328,2.18984801,34014.0,34013.0,3.17105687]
[1625699945780,2.18984801,34014.0,34013.0,4.5515863]
[1625699946081,1.1646639,34014.0,34013.0,4.5515863]
[1625699946381,1.1646639,34014.0,34013.0,4.79216174]
[1625699946531,0.48115088,34014.0,34013.0,4.79216174]
[1625699947211,0.48115088,34014.0,34013.0,6.34512646]
[1625699947510,0.6897609,34017.0,34013.0,6.34512646]
[1625699947810,0.24157544,34019.0,34016.0,4.31233754]
[1625699947811,0.93193469,34019.0,34016.0,4.31233754]
[1625699947960,0.93193469,34019.0,34018.0,4.31017618]
[1625699948262,0.24157544,34019.0,34018.0,4.31548705]
[1625699948410,0.79671435,34021.0,34018.0,4.79663793]
[1625699948562,0.002,34024.0,34018.0,6.35498112]
[1625699948710,0.002,34024.0,34023.0,2.57953103]
[1625699948860,0.002,34024.0,34023.0,2.84862103]
[1625699949162,0.002,34024.0,34023.0,2.85393125]
[1625699949311,0.002,34024.0,34023.0,4.39908017]
[1625699950214,1.44542066,34037.0,34023.0,4.89908017]
[1625699950365,0.91843593,34038.0,34036.0,0.96230176]
[1625699950516,0.91843593,34038.0,34036.0,1.26169176]
[1625699950663,0.2929,34047.0,34036.0,1.76169176]
[1625699950818,0.2929,34047.0,34037.0,0.01396373]
[1625699950966,0.9565,34053.0,34039.0,1.70440645]
[1625699951416,0.057,34052.0,34040.0,0.0053093]
[1625699951714,0.057,34052.0,34048.0,5.2487]
[1625699951863,0.057,34052.0,34048.0,5.45824]
[1625699952463,0.057,34052.0,34051.0,0.72172632]
[1625699954115,0.9565,34053.0,34051.0,0.72172632]
[1625699955018,0.057,34052.0,34051.0,0.72172632]
[1625699957268,0.057,34052.0,34051.0,0.72272632]
[1625699957570,0.26711,34052.0,34051.0,0.72272632]
[1625699958172,4.41361,34052.0,34051.0,0.72272632]
[1625699959746,4.41361,34052.0,34051.0,2.632e-05]
[1625699960495,4.89476088,34052.0,34051.0,2.632e-05]
[1625699960795,0.00017368,34050.0,34045.0,0.002]
[1625699960946,4.89476088,34052.0,34045.0,0.002]
[1625699962446,0.48115088,34046.0,34045.0,0.002]
[1625699962598,0.53815088,34046.0,34045.0,0.002]
[1625699963800,0.48115088,34046.0,34045.0,0.002]
[1625699966353,0.48115088,34046.0,34044.0,0.001]
[1625699966505,0.48115088,34046.0,34044.0,0.24157544]
[1625699966954,0.057,34045.0,34044.0,0.24157544]
[1625699967404,0.48115088,34046.0,34044.0,0.24157544]
[1625699967558,0.24057544,34046.0,34044.0,0.24157544]
[1625699967705,0.9565,34053.0,34045.0,1.5]
[1625699968011,0.9565,34053.0,34049.0,1.0]
[1625699968154,0.9565,34053.0,34050.0,0.5]
[1625699968307,0.9565,34053.0,34050.0,1.5]
[1625699968455,0.9565,34053.0,34052.0,0.72172632]
[1625699968605,0.9565,34053.0,34052.0,1.22172632]
[1625699968758,0.9565,34053.0,34052.0,0.72172632]
[1625699969205,0.002,34056.0,34052.0,1.22172632]
[1625699969354,0.002,34057.0,34052.0,1.22172632]
[1625699969506,0.002,34057.0,34052.0,2.22703118]
[1625699969656,0.002,34057.0,34054.0,1.0]
[1625699969808,0.002,34057.0,34055.0,0.5]
[1625699969955,0.002,34057.0,34056.0,4.7289]
[1625699970106,0.002,34057.0,34056.0,4.99713]
[1625699970260,0.002,34057.0,34056.0,5.00243379]
[1625699970557,0.002,34057.0,34056.0,5.24300923]
[1625699971759,0.002,34057.0,34056.0,5.23770544]
[1625699971910,0.002,34057.0,34056.0,4.96947544]
[1625699974164,0.002,34057.0,34056.0,5.46947544]
[1625699974315,0.002,34057.0,34056.0,5.4747795]
[1625699974617,0.002,34057.0,34056.0,6.4747795]
[1625699974914,0.9206,34078.0,34056.0,6.4747795]
[1625699974915,0.9206,34078.0,34056.0,5.4747795]
[1625699975065,0.9206,34078.0,34056.0,9.00780747]
[1625699975217,0.9206,34078.0,34061.0,1.0]
[1625699975366,0.9206,34078.0,34062.0,0.5]
[1625699975665,0.9206,34078.0,34063.0,0.00530279]
[1625699976419,0.9206,34078.0,34062.0,0.00530301]
[1625699976566,0.9206,34078.0,34077.0,0.72172632]
[1625699979641,0.9206,34078.0,34077.0,5.98542632]
[1625699981217,0.9776,34078.0,34077.0,5.98542632]
[1625699981968,0.9776,34078.0,34077.0,0.24057544]
[1625699982272,0.9776,34078.0,34056.0,4.7299]
[1625699982419,1.2173,34078.0,34056.0,4.7299]
[1625699982569,0.24057544,34072.0,34071.0,0.24057544]
[1625699982718,0.29757544,34072.0,34071.0,0.24057544]
[1625699984595,0.53815088,34072.0,34071.0,0.24057544]
[1625699987072,0.81327088,34072.0,34071.0,0.24057544]
[1625699987222,0.81327088,34072.0,34071.0,0.24157544]
[1625699988725,0.53815088,34072.0,34071.0,0.24157544]
[1625699989701,0.48115088,34072.0,34071.0,0.24157544]
[1625699989851,0.057,34077.0,34071.0,0.24157544]
[1625699990605,0.057,34077.0,34076.0,0.24057544]
[1625699990752,0.057,34077.0,34076.0,0.56361544]
[1625699993080,0.057,34077.0,34076.0,0.56892151]
[1625699996314,0.057,34077.0,34076.0,0.56992151]
[1625700002170,0.057,34077.0,34076.0,0.00630607]
[1625700002620,0.53815088,34077.0,34076.0,0.00630607]
[1625700003522,0.53815088,34077.0,34065.0,0.24057544]
[1625700003670,0.53815088,34077.0,34061.0,0.24457544]
[1625700004048,1.02287921,34076.0,34067.0,0.00530534]
[1625700004197,0.057,34075.0,34067.0,0.00530534]
[1625700004346,1.07991197,34075.0,34067.0,0.00530534]
[1625700004496,1.02295903,34074.0,34067.0,0.00530534]
[1625700004646,0.72172632,34068.0,34067.0,0.00530534]
[1625700004796,0.98934632,34068.0,34067.0,0.00530534]
[1625700004948,0.98934632,34068.0,34061.0,0.004]
[1625700005097,0.98934632,34068.0,34052.0,0.24057544]
[1625700005098,0.98934632,34068.0,34056.0,0.005]
[1625700005398,0.98934632,34068.0,34065.0,0.003]
[1625700005547,1.02340146,34067.0,34065.0,0.003]
[1625700005696,2.27777286,34066.0,34065.0,0.003]
[1625700005996,3.64438687,34066.0,34065.0,0.003]
[1625700006149,2.27777286,34066.0,34065.0,0.00830027]
[1625700006297,2.27777286,34066.0,34049.0,0.24057544]
[1625700006447,0.5,34065.0,34049.0,0.24057544]
[1625700006598,0.057,34064.0,34042.0,1.19109041]
[1625700006749,0.24057544,34054.0,34050.0,0.00529358]
[1625700006897,0.057,34053.0,34046.0,0.00529372]
[1625700008700,0.48115088,34047.0,34046.0,0.00529372]
[1625700008851,0.85580088,34047.0,34046.0,0.00529372]
[1625700009901,0.53815088,34047.0,34046.0,0.00529372]
[1625700010052,0.53815088,34047.0,34046.0,0.68761225]
[1625700011331,0.53815088,34047.0,34046.0,0.00529372]
[1625700013282,0.53815088,34047.0,34045.0,0.24057544]
[1625700017038,0.48115088,34047.0,34045.0,0.24057544]
[1625700017188,0.92565436,34054.0,34045.0,0.24057544]
[1625700017189,0.057,34053.0,34046.0,0.00529357]
[1625700017340,0.001,34051.0,34046.0,0.21594357]
[1625700017489,0.001,34051.0,34047.0,0.68276206]
[1625700017641,0.001,34051.0,34049.0,0.68232029]